bitfinex/quotes_BTCUSD_20241119
["timestamp","ask_amount","ask_price","bid_price","bid_amount"]
[1732033166223,0.12401279,92371.0,92344.0,0.35462614]
[1732033166224,0.0798,92371.0,92344.0,0.13604614]
[1732033166482,0.108261,92369.0,92355.0,0.00203041]
[1732033166705,0.0798,92371.0,92345.0,0.10906255]
[1732033166923,0.0008559,92381.0,92356.0,0.21860794]
[1732033167155,0.108258,92372.0,92353.0,0.108279]
[1732033167362,0.108261,92370.0,92357.0,0.00203503]
[1732033167590,0.0008559,92381.0,92358.0,0.10906255]
[1732033167809,0.0008559,92381.0,92363.0,0.01]
[1732033168028,0.0008559,92381.0,92359.0,0.11]
[1732033168029,0.0008559,92381.0,92374.0,0.108254]
[1732033168251,0.0008559,92381.0,92371.0,0.216516]
[1732033168472,0.0008559,92381.0,92375.0,0.00202913]
[1732033168692,0.0008559,92381.0,92370.0,0.108259]
[1732033168931,0.0008559,92381.0,92376.0,0.0020288]
[1732033169150,0.216468,92393.0,92370.0,0.10906255]
[1732033169373,0.216468,92393.0,92377.0,0.00202848]
[1732033169374,0.108237,92390.0,92377.0,0.00202848]
[1732033169633,0.216468,92393.0,92373.0,0.108256]
[1732033169876,0.0825,92396.0,92378.0,0.0020311]
[1732033169877,0.108243,92384.0,92378.0,0.0020311]
[1732033170094,0.0825,92396.0,92359.0,0.0017106]
[1732033170095,0.18723181,92391.0,92359.0,0.0017106]
[1732033170359,0.10906255,92390.0,92361.0,0.10827]
[1732033170578,0.10825,92379.0,92361.0,0.10827]
[1732033170794,0.10825,92379.0,92362.0,0.00203634]
[1732033173059,0.18723181,92391.0,92362.0,0.00203634]
[1732033173060,0.108268,92363.0,92362.0,0.00203634]
[1732033173514,0.108271,92360.0,92359.0,0.0017106]
[1732033173977,0.21733355,92360.0,92359.0,0.0017106]
[1732033176513,0.26283355,92360.0,92359.0,0.0017106]
[1732033176732,0.39583355,92360.0,92359.0,0.0017106]
[1732033177419,0.108308,92329.0,92310.0,0.15121622]
[1732033177633,0.216565,92351.0,92311.0,0.12399124]
[1732033177904,0.324889,92339.0,92312.0,0.01492869]
[1732033178136,0.108308,92330.0,92313.0,0.01492869]
[1732033178354,0.108308,92330.0,92314.0,0.01492869]
[1732033178575,0.1083,92336.0,92317.0,0.108321]
[1732033178794,0.433092,92359.0,92323.0,0.108314]
[1732033179015,0.18723181,92361.0,92325.0,0.108312]
[1732033179016,0.108291,92344.0,92325.0,0.108312]
[1732033179300,0.13206255,92358.0,92316.0,0.10906255]
[1732033179301,0.108287,92348.0,92326.0,0.01492869]
[1732033179498,0.10906255,92358.0,92328.0,0.216619]
[1732033179722,0.216555,92355.0,92331.0,0.108305]
[1732033179939,0.10906255,92358.0,92332.0,0.01492869]
[1732033180156,0.216579,92345.0,92327.0,0.01492869]
[1732033180379,0.108297,92339.0,92328.0,0.01492869]
[1732033180602,0.10906255,92358.0,92331.0,0.108305]
[1732033180842,0.10906255,92358.0,92332.0,0.01492117]
[1732033180843,0.1083,92336.0,92332.0,0.01492117]
[1732033181082,0.1083,92336.0,92317.0,0.1]
[1732033181083,0.108297,92338.0,92320.0,0.108318]
[1732033181296,0.10906255,92358.0,92326.0,0.108311]
[1732033181513,0.15341298,92358.0,92327.0,0.01492117]
[1732033181743,0.15341298,92358.0,92328.0,0.01492117]
[1732033181963,0.15341298,92358.0,92316.0,0.01]
[1732033181964,0.108296,92340.0,92329.0,0.01492117]
[1732033182172,0.108296,92340.0,92321.0,0.12323817]
[1732033182387,0.216586,92342.0,92322.0,0.12323617]
[1732033182602,0.15341298,92358.0,92323.0,0.23155117]
[1732033182812,0.108288,92346.0,92328.0,0.108308]
[1732033184526,0.1083,92336.0,92335.0,0.01492117]
[1732033184775,0.108309,92328.0,92326.0,0.0017106]
[1732033184997,0.10831,92327.0,92326.0,0.0017106]
[1732033185517,0.21737255,92327.0,92326.0,0.0017106]
[1732033189534,0.26197185,92327.0,92326.0,0.0017106]
[1732033192270,0.1529093,92327.0,92326.0,0.0017106]
[1732033192511,0.1237,92336.0,92304.0,0.18894161]
[1732033192764,0.26164299,92328.0,92307.0,0.108333]
[1732033192973,0.10906255,92335.0,92305.0,0.23158054]
[1732033192974,0.10906255,92335.0,92308.0,0.01490854]
[1732033193196,0.108316,92322.0,92309.0,0.01490854]
[1732033193413,0.21662,92328.0,92309.0,0.12506821]
[1732033193656,0.216605,92334.0,92309.0,0.12506821]
[1732033193657,0.216605,92334.0,92312.0,0.108328]
[1732033193873,0.216605,92334.0,92309.0,0.00182867]
[1732033193874,0.16873179,92336.0,92313.0,0.01490854]
[1732033194085,0.10906255,92335.0,92313.0,0.00182703]
[1732033194327,0.10906255,92335.0,92314.0,0.01490854]
[1732033194560,0.10906255,92335.0,92315.0,0.01490854]
[1732033195027,0.10906255,92335.0,92306.0,0.21739655]
[1732033195028,0.10906255,92335.0,92316.0,0.01490854]
[1732033195280,0.10906255,92335.0,92317.0,0.01490854]
[1732033195522,0.10906255,92335.0,92308.0,0.216664]
[1732033195767,0.16873179,92336.0,92315.0,0.0017114]
[1732033196000,0.27779434,92336.0,92316.0,0.01490854]
[1732033199116,0.18879434,92336.0,92316.0,0.01490854]
[1732033199322,0.15409434,92336.0,92316.0,0.01490854]
[1732033199537,0.15409434,92336.0,92315.0,0.0017114]
[1732033199538,0.15409434,92336.0,92317.0,0.01490854]
[1732033199745,0.15409434,92336.0,92318.0,0.01490854]
[1732033199961,0.15409434,92336.0,92319.0,0.01490854]
[1732033200169,0.15409434,92336.0,92316.0,0.01490854]
[1732033200411,0.15409434,92336.0,92315.0,0.0017114]
[1732033200412,0.15409434,92336.0,92317.0,0.01490854]
[1732033200626,0.15409434,92336.0,92318.0,0.01490854]
[1732033200846,0.15409434,92336.0,92319.0,0.01490854]
[1732033201071,0.126072,92326.0,92319.0,0.01490854]
[1732033201288,0.10906255,92325.0,92315.0,0.0017114]
[1732033201506,0.10906255,92325.0,92316.0,0.01494324]
[1732033202174,0.0784,92324.0,92316.0,0.01494324]
[1732033202396,0.10906255,92323.0,92316.0,0.01494324]
[1732033202619,0.10906255,92323.0,92317.0,0.01494324]
[1732033202828,0.10906255,92323.0,92315.0,0.0017114]
[1732033202829,0.10906255,92323.0,92316.0,0.01494324]
[1732033203078,0.10906255,92323.0,92317.0,0.01494324]
[1732033203302,0.10906255,92323.0,92318.0,0.01494324]
[1732033203584,0.10906255,92323.0,92315.0,0.0017114]
[1732033203585,0.10906255,92323.0,92319.0,0.01494324]
[1732033203818,0.10906255,92323.0,92315.0,0.0017114]
[1732033207305,0.126072,92319.0,92315.0,0.0017114]
[1732033207536,0.10906255,92318.0,92315.0,0.0017114]
[1732033208358,0.10906255,92318.0,92316.0,0.0008558]
[1732033210137,0.10906255,92318.0,92287.0,0.1073189]
[1732033210377,0.10906255,92318.0,92288.0,0.00181626]
[1732033211032,0.10906255,92318.0,92285.0,0.110068]
[1732033211289,0.10906255,92318.0,92289.0,0.00181593]
[1732033211512,0.10906255,92318.0,92286.0,0.11087946]
[1732033211725,0.10906255,92318.0,92287.0,0.00181658]
[1732033212158,0.10906255,92318.0,92288.0,0.108355]
[1732033212394,0.12158027,92324.0,92290.0,0.126072]
[1732033212606,0.10906255,92323.0,92292.0,0.370154]
[1732033212843,0.10906255,92323.0,92296.0,0.108346]
[1732033213081,0.10906255,92323.0,92293.0,0.216701]
[1732033213082,0.10906255,92323.0,92293.0,0.00181626]
[1732033213293,0.10906255,92323.0,92297.0,0.11015994]
[1732033213515,0.10906255,92323.0,92294.0,0.00181593]
[1732033213787,0.10906255,92323.0,92295.0,0.0018156]
[1732033214002,0.12158027,92324.0,92295.0,0.21741055]
[1732033214221,0.23064282,92324.0,92296.0,0.00175429]
[1732033214474,0.23064282,92324.0,92297.0,0.108345]
[1732033214703,0.23064282,92324.0,92296.0,0.00175429]
[1732033214916,0.23064282,92324.0,92298.0,0.00175397]
[1732033215146,0.23064282,92324.0,92299.0,0.00175364]
[1732033215377,0.23064282,92324.0,92295.0,0.10906255]
[1732033215594,0.23064282,92324.0,92300.0,0.00175331]
[1732033215826,0.23064282,92324.0,92295.0,0.21740955]
[1732033216044,0.23064282,92324.0,92301.0,0.00175298]
[1732033216251,0.23064282,92324.0,92295.0,0.10906255]
[1732033216460,0.23064282,92324.0,92302.0,0.00175265]
[1732033216670,0.23064282,92324.0,92295.0,0.10906255]
[1732033217096,0.23064282,92324.0,92296.0,0.00175462]
[1732033218898,0.23064282,92324.0,92300.0,0.108341]
[1732033219132,0.23064282,92324.0,92298.0,0.108344]
[1732033219368,0.23064282,92324.0,92299.0,0.00175364]
[1732033219598,0.23064282,92324.0,92295.0,0.10906255]
[1732033219826,0.23064282,92324.0,92300.0,0.00175331]
[1732033220059,0.23064282,92324.0,92295.0,0.10906255]
[1732033220296,0.23064282,92324.0,92301.0,0.00175298]
[1732033220519,0.23064282,92324.0,92295.0,0.10906255]
[1732033220759,0.23064282,92324.0,92296.0,0.216693]
[1732033220979,0.12158027,92324.0,92303.0,0.216676]
[1732033221215,0.12158027,92324.0,92304.0,0.00216646]
[1732033221499,0.12158027,92324.0,92304.0,0.00391846]
[1732033222845,0.12158027,92324.0,92305.0,0.10906255]
[1732033223069,0.0782,92332.0,92309.0,0.10833]
[1732033223295,0.0782,92332.0,92310.0,0.11122886]
[1732033223533,0.0782,92332.0,92310.0,0.11297295]
[1732033223991,0.0782,92332.0,92310.0,0.11080664]
[1732033224196,0.0782,92332.0,92312.0,0.108327]
[1732033224464,0.0782,92332.0,92312.0,0.10906255]
[1732033224677,0.0782,92332.0,92315.0,0.108323]
[1732033224951,0.04625808,92336.0,92322.0,0.126072]
[1732033224952,0.0017116,92336.0,92322.0,0.126072]
[1732033225181,0.0017116,92336.0,92330.0,0.216614]
[1732033225398,0.0017116,92336.0,92335.0,0.108301]
[1732033225609,0.0017116,92336.0,92335.0,0.21797648]
[1732033225836,0.0017116,92336.0,92335.0,0.31715627]
[1732033226056,0.0017116,92336.0,92335.0,0.22107233]
[1732033226286,0.0017116,92336.0,92335.0,0.41212808]
[1732033226501,0.0017116,92336.0,92335.0,0.40657233]
[1732033226742,0.0017116,92336.0,92335.0,0.65789202]
[1732033226949,0.0017116,92336.0,92335.0,0.69916981]
[1732033227403,0.0017116,92336.0,92335.0,0.48085012]
[1732033228071,0.0017116,92336.0,92335.0,0.45785012]
[1732033228283,0.0017116,92336.0,92335.0,0.50697593]
[1732033228537,0.0017116,92336.0,92335.0,0.00170878]
[1732033228803,0.0017116,92336.0,92328.0,0.342689]
[1732033229124,0.12541289,92352.0,92335.0,0.0016427]
[1732033229330,0.1566,92336.0,92335.0,0.0016427]
[1732033229544,0.1566,92336.0,92303.0,0.24102384]
[1732033229545,0.216616,92329.0,92308.0,0.0963853]
[1732033229780,0.0786,92335.0,92310.0,0.10906255]
[1732033229993,0.0786,92335.0,92310.0,0.21739255]
[1732033229994,0.216608,92333.0,92310.0,0.21739255]
[1732033230230,0.216635,92322.0,92311.0,0.00159845]
[1732033230435,0.216604,92334.0,92311.0,0.110661]
[1732033230648,0.108317,92322.0,92312.0,0.01495613]
[1732033230872,0.216611,92331.0,92313.0,0.01495613]
[1732033231138,0.216626,92325.0,92314.0,0.01495613]
[1732033231371,0.108315,92323.0,92315.0,0.01495613]
[1732033231585,0.108315,92323.0,92316.0,0.01495613]
[1732033231784,0.108315,92323.0,92317.0,0.01495613]
[1732033232016,0.108315,92323.0,92318.0,0.01495613]
[1732033232230,0.216626,92325.0,92319.0,0.01495613]
[1732033232450,0.108317,92322.0,92320.0,0.01495613]
[1732033232681,0.108317,92322.0,92311.0,0.10906255]
[1732033232682,0.216624,92326.0,92321.0,0.01495613]
[1732033232918,0.0786,92335.0,92322.0,0.01495613]
[1732033233145,0.108314,92324.0,92323.0,0.01495613]
[1732033233604,0.108314,92324.0,92312.0,0.01495613]
[1732033233858,0.108316,92322.0,92313.0,0.00136644]
[1732033234094,0.0786,92335.0,92312.0,0.01495613]
[1732033234095,0.108327,92313.0,92312.0,0.01495613]
[1732033234348,0.126072,92324.0,92312.0,0.01495613]
[1732033234584,0.126072,92324.0,92296.0,0.0008558]
[1732033234585,0.216639,92320.0,92313.0,0.01495613]
[1732033234804,0.216639,92320.0,92296.0,0.0008558]
[1732033234805,0.108329,92311.0,92297.0,0.10906255]
[1732033235042,0.216639,92320.0,92298.0,0.00136015]
[1732033235043,0.108328,92312.0,92298.0,0.00136015]
[1732033235278,0.216639,92320.0,92298.0,0.00136015]
[1732033235279,0.216647,92316.0,92299.0,0.10906255]
[1732033235507,0.108326,92314.0,92299.0,0.10906255]
[1732033235716,0.108326,92314.0,92300.0,0.00136099]
[1732033235943,0.108326,92314.0,92301.0,0.10906255]
[1732033236167,0.108326,92314.0,92302.0,0.00135986]
[1732033236393,0.108327,92313.0,92302.0,0.00135986]
[1732033236850,0.0779,92309.0,92302.0,0.00135986]
[1732033237099,0.108341,92301.0,92296.0,0.0008558]
[1732033237350,0.108342,92300.0,92296.0,0.0008558]
[1732033238213,0.216679,92303.0,92296.0,0.0008558]
[1732033238434,0.10834,92302.0,92296.0,0.0008558]
[1732033240281,0.26169319,92303.0,92296.0,0.0008558]
[1732033240282,0.108341,92301.0,92296.0,0.0008558]
[1732033241138,0.26169319,92303.0,92296.0,0.0008558]
[1732033241139,0.37003219,92303.0,92296.0,0.0008558]
[1732033241364,0.10834,92302.0,92296.0,0.0008558]
[1732033242013,0.0779,92309.0,92296.0,0.0008558]
[1732033242240,0.0802,92321.0,92296.0,0.0008558]
[1732033242464,0.0802,92321.0,92297.0,0.11042242]
[1732033242699,0.0802,92321.0,92297.0,0.18842242]
[1732033242940,0.126072,92317.0,92298.0,0.01494816]
[1732033243180,0.0802,92321.0,92299.0,0.01494816]
[1732033243181,0.10834,92302.0,92299.0,0.01494816]
[1732033243393,0.126072,92310.0,92300.0,0.01494816]
[1732033243617,0.216669,92307.0,92301.0,0.01494816]
[1732033243851,0.216669,92307.0,92296.0,0.0008558]
[1732033243852,0.108338,92304.0,92296.0,0.0008558]
[1732033244082,0.21667,92306.0,92297.0,0.01495244]
[1732033244350,0.21667,92306.0,92296.0,0.0008558]
[1732033244351,0.108339,92303.0,92298.0,0.01495244]
[1732033244559,0.108339,92303.0,92299.0,0.01495244]
[1732033244767,0.108339,92303.0,92300.0,0.01495244]
[1732033244993,0.108339,92303.0,92301.0,0.01495244]
[1732033245227,0.108339,92303.0,92296.0,0.0008558]
[1732033245228,0.108339,92303.0,92302.0,0.01495244]
[1732033245677,0.216632,92323.0,92298.0,0.216689]
[1732033245922,0.0017118,92324.0,92302.0,0.00133893]
[1732033246136,0.0017118,92324.0,92299.0,0.12401499]
[1732033246137,0.108319,92320.0,92303.0,0.12401499]
[1732033246352,0.0017118,92324.0,92304.0,0.01495244]
[1732033246609,0.0017118,92324.0,92305.0,0.01495244]
[1732033246610,0.188518,92321.0,92305.0,0.01495244]
[1732033246813,0.108319,92320.0,92306.0,0.01495244]
[1732033247026,0.0802,92321.0,92307.0,0.01495244]
[1732033247252,0.108326,92314.0,92308.0,0.01495244]
[1732033247510,0.108331,92310.0,92309.0,0.01495244]
[1732033247722,0.108331,92310.0,92296.0,0.0008558]
[1732033247723,0.108344,92298.0,92297.0,0.01495244]
[1732033247966,0.1247,92309.0,92296.0,0.0008558]
[1732033247967,0.234417,92297.0,92296.0,0.0008558]
[1732033248180,0.41997955,92297.0,92296.0,0.0008558]
[1732033248420,0.46817955,92297.0,92296.0,0.0008558]
[1732033248640,0.46817955,92297.0,92286.0,0.01496817]
[1732033248641,0.183957,92287.0,92286.0,0.01496817]
[1732033248884,0.310029,92287.0,92286.0,0.01496817]
[1732033249454,0.108358,92286.0,92285.0,0.00171]
[1732033249657,0.0756,92287.0,92285.0,0.00171]
[1732033250279,0.216702,92293.0,92286.0,0.01495695]
[1732033250503,0.216708,92290.0,92285.0,0.00171]
[1732033250759,0.108358,92286.0,92285.0,0.00171]
[1732033250982,0.108358,92286.0,92285.0,0.01666052]
[1732033251187,0.108353,92291.0,92285.0,0.01666052]
[1732033251404,0.216701,92293.0,92286.0,0.01495052]
[1732033251650,0.108355,92289.0,92285.0,0.00171]
[1732033251877,0.11834652,92296.0,92286.0,0.01494512]
[1732033252104,0.10835,92294.0,92286.0,0.01494512]
[1732033252548,0.11834652,92296.0,92286.0,0.01494512]
[1732033252775,0.0808,92308.0,92286.0,0.01494512]
[1732033253005,0.216689,92298.0,92286.0,0.01494512]
[1732033253229,0.32573055,92307.0,92287.0,0.00129007]
[1732033253461,0.0808,92308.0,92287.0,0.00129007]
[1732033253462,0.0808,92308.0,92287.0,0.216715]
[1732033253663,0.108337,92305.0,92288.0,0.01494512]
[1732033253876,0.0808,92308.0,92288.0,0.0012895]
[1732033254113,0.0808,92308.0,92285.0,0.00171]
[1732033254114,0.0808,92308.0,92286.0,0.216715]
[1732033254362,0.10834,92302.0,92289.0,0.0012895]
[1732033254620,0.108337,92304.0,92287.0,0.00129007]
[1732033254823,0.108337,92304.0,92290.0,0.00128754]
[1732033255247,0.0808,92308.0,92285.0,0.00171]
[1732033255447,0.108352,92292.0,92291.0,0.00128782]
[1732033255666,0.108352,92292.0,92285.0,0.00171]
[1732033255667,0.108352,92292.0,92287.0,0.0008551]
[1732033256116,0.216691,92297.0,92287.0,0.0008551]
[1732033256323,0.108347,92296.0,92287.0,0.0008551]
[1732033256532,0.216683,92301.0,92287.0,0.0008551]
[1732033256729,0.108348,92295.0,92287.0,0.0008551]
[1732033257393,0.108347,92296.0,92287.0,0.0008551]
[1732033257616,0.0445975,92304.0,92287.0,0.0008551]
[1732033257834,0.108339,92303.0,92287.0,0.0008551]
[1732033258043,0.0445975,92304.0,92288.0,0.00128641]
[1732033258275,0.108339,92303.0,92288.0,0.00128641]
[1732033258541,0.0017102,92304.0,92289.0,0.108355]
[1732033258753,0.0017102,92304.0,92288.0,0.00128641]
[1732033258754,0.0017102,92304.0,92288.0,0.10964141]
[1732033258964,0.0017102,92304.0,92287.0,0.0008551]
[1732033258965,0.0017102,92304.0,92290.0,0.0012881]
[1732033259191,0.0017102,92304.0,92287.0,0.0008551]
[1732033259192,0.0798,92303.0,92289.0,0.00128838]
[1732033259435,0.344364,92301.0,92287.0,0.0008551]
[1732033259677,0.108348,92295.0,92287.0,0.0008551]
[1732033259915,0.108349,92294.0,92287.0,0.0008551]
[1732033260346,0.216689,92298.0,92287.0,0.0008551]
[1732033260560,0.32503,92299.0,92287.0,0.0008551]
[1732033260783,0.216684,92300.0,92287.0,0.0008551]
[1732033260993,0.108348,92295.0,92287.0,0.0008551]
[1732033261637,0.0798,92303.0,92287.0,0.0008551]
[1732033261853,0.296479,92303.0,92287.0,0.0008551]
[1732033262096,0.0798,92303.0,92287.0,0.0008551]
[1732033262359,0.10835,92293.0,92287.0,0.0008551]
[1732033262580,0.2167,92294.0,92287.0,0.0008551]
[1732033262795,0.296478,92303.0,92287.0,0.0008551]
[1732033263014,0.10835,92294.0,92287.0,0.0008551]
[1732033263229,0.296479,92303.0,92287.0,0.0008551]
[1732033263448,0.108347,92296.0,92287.0,0.0008551]
[1732033263672,0.0798,92303.0,92287.0,0.0008551]
[1732033263673,0.216682,92301.0,92287.0,0.0008551]
[1732033264063,0.108344,92299.0,92287.0,0.0008551]
[1732033264275,0.0017102,92304.0,92288.0,0.11253721]
[1732033264442,0.0017102,92304.0,92303.0,0.108338]
[1732033264680,0.0017102,92304.0,92303.0,0.21740055]
[1732033265074,0.0017102,92304.0,92303.0,0.21870153]
[1732033265291,0.0017102,92304.0,92303.0,0.30460153]
[1732033265730,0.0017102,92304.0,92303.0,0.29460153]
[1732033266703,0.0017102,92304.0,92303.0,0.45826221]
[1732033267182,0.0017118,92324.0,92323.0,0.32829825]
[1732033267408,0.0017118,92324.0,92323.0,0.4373608]
[1732033267634,0.0017118,92324.0,92323.0,0.44865519]
[1732033268736,0.0017118,92324.0,92323.0,0.31258319]
[1732033268975,0.0017118,92324.0,92323.0,0.32258319]
[1732033270696,0.0017118,92324.0,92323.0,0.33258319]
[1732033270918,0.0017118,92324.0,92323.0,0.37686382]
[1732033272023,0.0017118,92324.0,92323.0,0.36686382]
[1732033273794,0.0017118,92324.0,92323.0,0.35686382]
[1732033274269,0.0497,92359.0,92333.0,0.108302]
[1732033274270,0.23703486,92359.0,92333.0,0.108302]
[1732033274486,0.0497,92359.0,92334.0,0.108302]
[1732033274696,0.216549,92358.0,92337.0,0.108298]
[1732033274909,0.0497,92359.0,92335.0,0.00125743]
[1732033275154,0.0497,92359.0,92338.0,0.0012563]
[1732033275415,0.108286,92348.0,92336.0,0.00125715]
[1732033275629,0.108286,92348.0,92339.0,0.0012563]
[1732033275848,0.108286,92348.0,92337.0,0.00125378]
[1732033276073,0.108286,92348.0,92323.0,0.26090863]
[1732033276074,0.324864,92346.0,92317.0,0.108321]
[1732033276291,0.1263,92347.0,92318.0,0.10906255]
[1732033276520,0.18733486,92368.0,92320.0,0.01]
[1732033276738,0.0799,92356.0,92326.0,0.216621]
[1732033276959,0.0799,92356.0,92321.0,0.32569755]
[1732033276960,0.0799,92356.0,92333.0,0.108302]
[1732033277192,0.108284,92350.0,92334.0,0.10906255]
[1732033277449,0.108284,92350.0,92334.0,0.11031942]
[1732033277658,0.0799,92356.0,92334.0,0.11031942]
[1732033277867,0.108283,92351.0,92334.0,0.11031942]
[1732033278091,0.108284,92350.0,92334.0,0.11031942]
[1732033278311,0.0799,92356.0,92335.0,0.216602]
[1732033278532,0.0799,92356.0,92341.0,0.108293]
[1732033278783,0.0799,92356.0,92335.0,0.1095559]
[1732033278784,0.108281,92352.0,92335.0,0.1095559]
[1732033278993,0.108283,92351.0,92342.0,0.00125462]
[1732033279206,0.108283,92351.0,92334.0,0.10906255]
[1732033279433,0.0799,92356.0,92336.0,0.2166]
[1732033279646,0.0799,92356.0,92340.0,0.108294]
[1732033279857,0.0799,92356.0,92335.0,0.21785618]
[1732033279858,0.0799,92356.0,92341.0,0.108293]
[1732033280071,0.0799,92356.0,92339.0,0.108296]
[1732033280285,0.0816094,92356.0,92341.0,0.0012549]
[1732033280551,0.0816094,92356.0,92342.0,0.10906255]
[1732033280762,0.0816094,92356.0,92343.0,0.108291]
[1732033280976,0.0816094,92356.0,92342.0,0.11031717]
[1732033281187,0.0816094,92356.0,92344.0,0.00125406]
[1732033281427,0.0816094,92356.0,92334.0,0.0008547]
[1732033281428,0.108284,92350.0,92343.0,0.00125434]
[1732033281636,0.0816094,92356.0,92334.0,0.10991725]
[1732033282100,0.108281,92352.0,92334.0,0.21821825]
[1732033282307,0.108282,92351.0,92335.0,0.00124766]
[1732033282513,0.216558,92354.0,92335.0,0.10954866]
[1732033282725,0.108281,92352.0,92335.0,0.10954866]
[1732033283152,0.108282,92351.0,92335.0,0.00124766]
[1732033283365,0.12576926,92356.0,92335.0,0.00124766]
[1732033283592,0.10906255,92355.0,92335.0,0.00124766]
[1732033284016,0.10906255,92355.0,92334.0,0.0008547]
[1732033284232,0.12576926,92356.0,92334.0,0.0008547]
[1732033284233,0.21656,92353.0,92334.0,0.0008547]
[1732033284446,0.12576926,92356.0,92335.0,0.1083]
[1732033284447,0.108281,92352.0,92335.0,0.1083]
[1732033284657,0.12576926,92356.0,92335.0,0.00124682]
[1732033284871,0.108281,92352.0,92335.0,0.10954682]
[1732033285085,0.108279,92354.0,92338.0,0.108297]
[1732033285325,0.12576926,92356.0,92336.0,0.00124626]
[1732033285582,0.0816094,92356.0,92339.0,0.10906255]
[1732033285996,0.0816094,92356.0,92343.0,0.10829]
[1732033286211,0.0011,92352.0,92344.0,0.10829]
[1732033286415,0.0011,92352.0,92344.0,0.00124513]
[1732033286878,0.0011,92352.0,92344.0,0.10953513]
[1732033287091,0.0011,92352.0,92344.0,0.00124513]
[1732033287291,0.0011,92352.0,92345.0,0.216578]
[1732033287499,0.0011,92352.0,92351.0,0.108282]
[1732033287708,0.0011,92352.0,92351.0,0.21734455]
[1732033287919,0.0011,92352.0,92351.0,0.21857287]
[1732033288393,0.0011,92352.0,92351.0,0.00122832]
[1732033288843,0.0011,92352.0,92346.0,0.216576]
[1732033288983,0.0220754,92365.0,92351.0,0.00122524]
[1732033289204,0.216527,92368.0,92351.0,0.00122524]
[1732033289420,0.216527,92368.0,92348.0,0.108285]
[1732033289421,0.108266,92366.0,92352.0,0.00122945]
[1732033289789,0.108266,92365.0,92353.0,0.0012286]
[1732033289989,0.21652,92371.0,92353.0,0.0012286]
[1732033289990,0.108276,92357.0,92353.0,0.0012286]
[1732033290194,0.216576,92346.0,92326.0,0.108311]
[1732033290413,0.216565,92351.0,92335.0,0.10906255]
[1732033290611,0.216565,92351.0,92321.0,0.0782]
[1732033290612,0.12604113,92355.0,92336.0,0.00117106]
[1732033290864,0.108289,92346.0,92327.0,0.108309]
[1732033291081,0.216574,92347.0,92327.0,0.108309]
[1732033291249,0.10829,92345.0,92324.0,0.216627]
[1732033291454,0.12604113,92355.0,92324.0,0.216627]
[1732033291455,0.108288,92346.0,92327.0,0.21662]
[1732033291656,0.216562,92352.0,92327.0,0.216619]
[1732033291855,0.216565,92351.0,92329.0,0.108307]
[1732033292260,0.108288,92347.0,92335.0,0.00117134]
[1732033292576,0.108291,92344.0,92327.0,0.10831]
[1732033292982,0.10906255,92359.0,92328.0,0.108308]
[1732033292983,0.216572,92348.0,92328.0,0.108308]
[1732033293194,0.108289,92346.0,92328.0,0.108308]
[1732033293400,0.10829,92345.0,92335.0,0.00117049]
[1732033293602,0.10829,92345.0,92328.0,0.108308]
[1732033293810,0.10829,92345.0,92335.0,0.00116965]
[1732033294224,0.10829,92345.0,92328.0,0.108308]
[1732033294660,0.10829,92345.0,92335.0,0.00116965]
[1732033294910,0.10906255,92359.0,92321.0,0.04492391]
[1732033295137,0.10906255,92359.0,92327.0,0.10831]
[1732033295138,0.108291,92344.0,92327.0,0.10831]
[1732033295628,0.10906255,92359.0,92325.0,0.216624]
[1732033295629,0.21655,92357.0,92325.0,0.216624]
[1732033295844,0.10906255,92356.0,92329.0,0.216616]
[1732033296056,0.10906255,92356.0,92328.0,0.216617]
[1732033296266,0.216555,92355.0,92335.0,0.00117274]
[1732033296476,0.10906255,92356.0,92321.0,0.26155791]
[1732033296477,0.108292,92343.0,92326.0,0.108311]
[1732033296689,0.108292,92343.0,92324.0,0.216627]
[1732033296690,0.10829,92345.0,92327.0,0.10831]
[1732033297123,0.10829,92345.0,92328.0,0.108309]
[1732033297344,0.10829,92345.0,92335.0,0.00116965]
[1732033297574,0.10829,92345.0,92328.0,0.108309]
[1732033297807,0.10829,92344.0,92326.0,0.108311]
[1732033298026,0.108292,92343.0,92335.0,0.00116965]
[1732033298266,0.216568,92350.0,92324.0,0.216627]
[1732033298479,0.12604113,92354.0,92324.0,0.216627]
[1732033298480,0.12604113,92354.0,92327.0,0.21662]
[1732033298725,0.12604113,92354.0,92328.0,0.108309]
[1732033298922,0.12604113,92354.0,92323.0,0.108314]
[1732033299134,0.108292,92343.0,92325.0,0.108312]
[1732033299368,0.108292,92343.0,92321.0,0.26155691]
[1732033299611,0.108292,92343.0,92300.0,0.40931496]
[1732033299612,0.12604113,92344.0,92309.0,0.216661]
[1732033299840,0.108301,92335.0,92310.0,0.1]
[1732033300064,0.184901,92335.0,92312.0,0.216655]
[1732033300290,0.184901,92335.0,92314.0,0.108325]
[1732033300516,0.184901,92335.0,92312.0,0.216655]
[1732033300747,0.184901,92335.0,92316.0,0.108322]
[1732033301014,0.184901,92335.0,92312.0,0.216655]
[1732033301232,0.184901,92335.0,92316.0,0.108323]
[1732033301651,0.184901,92335.0,92310.0,0.1]
[1732033302117,0.184901,92335.0,92312.0,0.216654]
[1732033302606,0.0766,92335.0,92315.0,0.216647]
[1732033302813,0.0766,92335.0,92323.0,0.108315]
[1732033303022,0.0766,92335.0,92319.0,0.216639]
[1732033303715,0.216588,92342.0,92319.0,0.216639]
[1732033303929,0.11909037,92344.0,92321.0,0.108317]
[1732033304191,0.03009037,92344.0,92322.0,0.00152178]
[1732033304447,0.03009037,92344.0,92321.0,0.216633]
[1732033304448,0.108293,92342.0,92325.0,0.108312]
[1732033304644,0.03009037,92344.0,92309.0,0.14342663]
[1732033304881,0.04369892,92349.0,92322.0,0.10906255]
[1732033305101,0.108293,92342.0,92322.0,0.10906255]
[1732033305314,0.216572,92348.0,92323.0,0.00117779]
[1732033305531,0.04369892,92349.0,92334.0,0.108301]
[1732033305746,0.0485,92353.0,92338.0,0.108297]
[1732033305990,0.044666,92353.0,92336.0,0.2166]
[1732033306206,0.044666,92353.0,92339.0,0.00118723]
[1732033306453,0.216534,92364.0,92337.0,0.0011878]
[1732033306680,0.10906255,92363.0,92340.0,0.00118695]
[1732033306906,0.108281,92352.0,92338.0,0.0011906]
[1732033307144,0.0826,92360.0,92334.0,0.10906255]
[1732033307376,0.0826,92360.0,92339.0,0.00118695]
[1732033307599,0.0826,92360.0,92334.0,0.10906255]